fUST/lending_fUST_20240706
["ID","MTS","AMOUNT","RATE_DAILY","PERIOD"]
[331345576,1720264244368,-7279.06,0.00043835,120]
[331345577,1720264244377,-502.69673458,0.00043835,120]
[331345578,1720264244387,-500.0,0.00043835,120]
[331345579,1720264244399,-502.62237897,0.00043835,120]
[331345580,1720264244408,-500.0,0.00043835,120]
[331345581,1720264244417,-614.68,0.00043835,120]
[331345582,1720264244426,-500.0,0.00043835,120]
[331345583,1720264244435,-3068.71,0.00043835,120]
[331345584,1720264244444,-160.765502,0.00043835,14]
[331345585,1720264244454,-160.765502,0.00043835,14]
[331345586,1720264244464,-500.0,0.00043835,120]
[331345587,1720264244473,-500.0,0.00043835,120]
[331345588,1720264244483,-500.0,0.00043835,120]
[331345589,1720264244492,-160.765502,0.00043835,14]
[331345590,1720264244503,-160.765502,0.00043835,14]
[331345591,1720264244513,-275.25815456,0.00043835,120]
[331345592,1720264244522,-500.0,0.00043835,120]
[331345593,1720264244532,-1337.85,0.00043835,120]
[331345594,1720264244542,-2028.92308,0.00043835,14]
[331345595,1720264244552,-1108.63,0.00043835,120]
[331345596,1720264244562,-2028.92308,0.00043835,14]
[331345597,1720264244573,-500.0,0.00043835,120]
[331345598,1720264244583,-500.0,0.00043835,120]
[331345599,1720264244592,-180.65873689,0.00043835,120]
[331345600,1720264244601,-500.0,0.00043835,120]
[331345601,1720264244611,-990.01,0.00043835,120]
[331345602,1720264244621,-500.0,0.00043835,120]
[331345603,1720264244630,-500.0,0.00043835,120]
[331345604,1720264244640,-617.10437205,0.00043835,120]
[331345605,1720264244649,-2028.92308,0.00043835,14]
[331345606,1720264244659,-2028.92308,0.00043835,14]
[331345607,1720264244669,-500.0,0.00043835,120]
[331345608,1720264244678,-502.73257466,0.00043835,120]
[331345609,1720264244688,-500.0,0.00043835,120]
[331345610,1720264244698,-500.0,0.00043835,120]
[331345611,1720264244708,-8380.48,0.00043835,2]
[331345612,1720264244718,-500.0,0.00043835,120]
[331345613,1720264244728,-8380.48,0.00043835,2]
[331345614,1720264244739,-8380.48,0.00043835,2]
[331345615,1720264244748,-502.44208996,0.00043835,120]
[331345616,1720264244758,-8380.48,0.00043835,2]
[331345617,1720264244769,-504.53924056,0.00043835,120]
[331345618,1720264244780,-8380.48,0.00043835,2]
[331345619,1720264244790,-500.0,0.00043835,120]
[331345620,1720264244800,-504.51123564,0.00043835,120]
[331345621,1720264244810,-500.0,0.00043835,120]
[331345622,1720264244820,-500.0,0.00043835,120]
[331345623,1720264244829,-512.96,0.00043835,120]
[331345624,1720264244840,-500.0,0.00043835,120]
[331345625,1720264244849,-500.0,0.00043835,2]
[331345626,1720264244858,-558.55646941,0.00043835,120]
[331345627,1720264244868,-500.0,0.00043835,120]
[331345628,1720264244878,-500.0,0.00043835,120]
[331345629,1720264244887,-154.66425609,0.00043835,120]
[331345630,1720264244897,-500.0,0.00043835,120]
[331345631,1720264244906,-500.0,0.00043835,120]
[331345632,1720264244916,-697.77,0.00043835,120]
[331345633,1720264244927,-500.0,0.00043835,22]
[331345634,1720264244937,-13358.38,0.00043835,120]
[331345635,1720264244947,-1428.45,0.00043835,120]
[331345636,1720264244956,-594.49,0.00043835,120]
[331345637,1720264244965,-151.0,0.00043835,14]
[331345638,1720264244976,-151.0,0.00043835,14]
[331345639,1720264244986,-500.0,0.00043835,120]
[331345640,1720264244995,-500.0,0.00043835,120]
[331345641,1720264245005,-500.0,0.00043835,120]
[331345642,1720264245016,-2071.72,0.00043835,120]
[331345643,1720264245025,-758.86,0.00043835,120]
[331345644,1720264245035,-500.0,0.00043835,120]
[331345645,1720264245044,-500.0,0.00043835,120]
[331345646,1720264245053,-500.0,0.00043835,120]
[331345647,1720264245062,-151.0,0.00043835,14]
[331345648,1720264245072,-978.33,0.00043835,120]
[331345649,1720264245082,-503.00471302,0.00043835,120]
[331345650,1720264245091,-501.21879964,0.00043835,120]
[331345651,1720264245101,-491.53248421,0.00043835,120]
[331345652,1720264245110,-500.0,0.00043835,120]
[331345653,1720264245120,-151.0,0.00043835,14]
[331345654,1720264245130,-500.0,0.00043835,120]
[331345655,1720264245139,-501.85525196,0.00043835,120]
[331345656,1720264245149,-500.0,0.00043835,120]
[331345657,1720264245158,-2031.969618,0.00043835,14]
[331345658,1720264245167,-500.0,0.00043835,120]
[331345659,1720264245176,-701.64,0.00043835,120]
[331345660,1720264245185,-621.58,0.00043835,120]
[331345661,1720264245194,-2031.969618,0.00043835,14]
[331345662,1720264245204,-500.0,0.00043835,120]
[331345663,1720264245215,-500.0,0.00043835,120]
[331345664,1720264245224,-698.55,0.00043835,120]
[331345665,1720264245234,-500.0,0.00043835,120]
[331345666,1720264245243,-500.0,0.00043835,120]
[331345667,1720264245252,-1450.22,0.00043835,120]
[331345668,1720264245262,-505.58530969,0.00043835,120]
[331345669,1720264245271,-3860.95,0.00043835,120]
[331345670,1720264245280,-500.0,0.00043835,120]
[331345671,1720264245290,-515.93685703,0.00043835,120]
[331345672,1720264245299,-500.0,0.00043835,120]
[331345673,1720264245308,-500.0,0.00043835,120]
[331345674,1720264245317,-500.0,0.00043835,120]
[331345675,1720264245326,-4910.23,0.00043835,120]
[331345676,1720264245335,-500.0,0.00043835,120]
[331345677,1720264245344,-500.0,0.00043835,120]
[331345678,1720264245353,-530.010669,0.00043835,14]
[331345679,1720264245363,-500.0,0.00043835,120]
[331345680,1720264245372,-500.0,0.00043835,120]
[331345681,1720264245381,-500.0,0.00043835,120]
[331345682,1720264245390,-500.0,0.00043835,120]
[331345683,1720264245399,-500.0,0.00043835,120]
[331345684,1720264245408,-500.0,0.00043835,120]
[331345685,1720264245418,-8171.38,0.00043835,120]
[331345686,1720264245427,-500.6227545,0.00043835,120]
[331345687,1720264245436,-500.0,0.00043835,120]
[331345688,1720264245445,-500.0,0.00043835,120]
[331345689,1720264245454,-500.0,0.00043835,120]
[331345690,1720264245463,-530.010669,0.00043835,14]
[331345691,1720264245473,-151.0,0.00043835,14]
[331345692,1720264245482,-578.28,0.00043835,120]
[331345693,1720264245491,-500.0,0.00043835,120]
[331345694,1720264245500,-500.0,0.00043835,120]
[331345695,1720264245509,-500.0,0.00043835,120]
[331345696,1720264245518,-151.0,0.00043835,14]
[331345697,1720264245527,-501.66657909,0.00043835,120]
[331345698,1720264245536,-500.0,0.00043835,120]
[331345699,1720264245545,-1456.6,0.00043835,120]
[331345700,1720264245555,-500.0,0.00043835,120]
[331345701,1720264245563,-500.0,0.00043835,120]
[331345702,1720264245573,-502.43953761,0.00043835,120]
[331345703,1720264245583,-500.0,0.00043835,120]
[331345704,1720264245592,-500.0,0.00043835,120]
[331345705,1720264245601,-684.35,0.00043835,120]
[331345706,1720264245610,-500.0,0.00043835,120]
[331345707,1720264245619,-500.0,0.00043835,120]
[331345708,1720264245629,-502.92032579,0.00043835,120]
[331345709,1720264245638,-837.38,0.00043835,120]
[331345710,1720264245647,-424.43795516,0.00043835,120]
[331345711,1720264245657,-507.32173901,0.00043835,120]
[331345712,1720264245667,-4434.13,0.00043835,120]
[331345713,1720264245676,-500.0,0.00043835,120]
[331345714,1720264245685,-151.0,0.00043835,14]
[331345715,1720264245695,-500.0,0.00043835,120]
[331345716,1720264245704,-151.0,0.00043835,14]
[331345717,1720264245713,-500.0,0.00043835,120]
[331345718,1720264245724,-500.0,0.00043835,120]
[331345719,1720264245734,-500.0,0.00043835,120]
[331345720,1720264245744,-500.0,0.00043835,120]
[331345721,1720264245753,-500.0,0.00043835,120]
[331345722,1720264245763,-1777.57,0.00043835,120]
[331345723,1720264245776,-502.105565,0.00043835,120]
[331345724,1720264245786,-550.26058132,0.00043835,120]
[331345725,1720264245795,-1347.9,0.00043835,120]
[331345726,1720264245806,-3910.72,0.00043835,120]
[331345727,1720264245815,-550.0740932,0.00043835,120]
[331345728,1720264245826,-1213.87,0.00043835,120]
[331345729,1720264245835,-526.05212795,0.00043835,120]
[331345730,1720264245845,-500.0,0.00043835,120]
[331345731,1720264245854,-2177.62,0.00043835,120]
[331345732,1720264245864,-503.66914768,0.00043835,120]
[331345733,1720264245875,-500.0,0.00043835,120]
[331345734,1720264245884,-1273.02,0.00043835,120]
[331345735,1720264245893,-497.88294838,0.00043835,120]
[331345736,1720264245903,-500.0,0.00043835,120]
[331345737,1720264245913,-500.0,0.00043835,120]
[331345738,1720264245922,-501.12844132,0.00043835,120]
[331345739,1720264245933,-500.0,0.00043835,120]
[331345740,1720264245942,-500.64279577,0.00043835,120]
[331345741,1720264245952,-321.959415,0.00043835,14]
[331345742,1720264245962,-6709.24,0.00043835,120]
[331345743,1720264245971,-2485.2,0.00043835,120]
[331345744,1720264245981,-6709.24,0.00043835,120]
[331345745,1720264245990,-3281.75204648,0.00043835,120]
[331345747,1720264246332,-3427.48795352,0.00043835,120]
[331345748,1720264246342,-6709.24,0.00043835,120]
[331345749,1720264246352,-4575.41689106,0.00043835,120]
[331345750,1720264246364,-1496.70205392,0.00043835,120]
[331345751,1720264246376,-581.02139,0.00043835,120]
[331345769,1720264250140,-0.01208204,0.00043835,120]
[331345770,1720264250323,-56.08758298,0.00043835,120]
[331345771,1720264250335,-1368.44402198,0.00043835,120]
[331345772,1720264250348,-268.30881849,0.00043835,120]
[331345808,1720265152522,-158.251329,0.00021096,2]
[331345809,1720265152547,-158.251329,0.00030011,2]
[331345810,1720265152574,-166.666666,0.00033181,2]
[331345811,1720265152597,-1821.75064317,0.00033739,2]
[331345823,1720265229331,-760.41122648,0.00033739,2]
[331345824,1720265247107,-122.54237253,0.00033739,2]
[331345825,1720265247135,-7660.43870625,0.00033739,4]
[331345826,1720265247159,-307.49561831,0.00033739,2]
[331345828,1720265345103,-158.251329,0.00021096,2]
[331345829,1720265351107,-158.251329,0.00031631,2]
[331345830,1720265351130,-262.10036123,0.00033739,4]
[331345831,1720265351157,-524.02753002,0.00033739,2]
[331345832,1720265351183,-299.6701139,0.00033792,2]
[331345833,1720265351207,-166.666666,0.00034085,2]
[331345834,1720265354108,-166.666666,0.0003499,2]
[331345835,1720265354134,-166.666666,0.00035895,2]
[331345836,1720265354160,-166.666666,0.00036799,2]
[331345837,1720265354185,-166.666666,0.00037704,2]
[331345838,1720265354208,-495.50543718,0.00037899,4]
[331345839,1720265354230,-161.0,0.00038263,2]
[331345840,1720265354343,-17977.30363899,0.00038263,2]
[331345841,1720265357989,669.70126235,0.00033739,4]
[331345842,1720265365197,-6922.69636101,0.00038263,2]
[331345843,1720265365219,-714.87934541,0.00038264,4]
[331345844,1720265365240,-543.03165876,0.00038499,4]
[331345845,1720265365262,-173.108916,0.00039021,2]
[331345846,1720265365283,-304.48464847,0.00039393,4]
[331345847,1720265365303,-155.24403697,0.00039393,10]
[331345848,1720265365323,-155.17986803,0.00039994,4]
[331345849,1720265365344,-331.7881799,0.00039994,4]
[331345850,1720265365365,-3990.98413807,0.00039999,4]
[331345851,1720265365386,-351.42169063,0.00039999,30]
[331345852,1720265365406,-869.18444447,0.0004,4]
[331345853,1720265365427,-538.65713944,0.00040228,4]
[331345854,1720265365447,-269.8439764,0.00040229,4]
[331345855,1720265365467,-307.50998759,0.00040229,4]
[331345856,1720265365488,-154.62117811,0.00040278,4]
[331345857,1720265365509,-156.66074006,0.00040278,4]
[331345858,1720265365530,-550.26615584,0.00040807,4]
[331345859,1720265365553,-706.63540107,0.00040895,4]
[331345860,1720265365576,-263.53447751,0.00041314,4]
[331345861,1720265366664,155.7780495,0.00039994,4]
[331345876,1720265433326,-360.68182567,0.00041941,7]
[331345877,1720265433336,-972.35439394,0.00042,2]
[331345878,1720265433346,-158.251329,0.00042167,2]
[331345880,1720265433355,-831.11565231,0.00042629,2]
[331345882,1720265433365,-155.60424435,0.00042629,4]
[331345884,1720265433375,-743.8294033,0.00043,2]
[331345886,1720265433384,-1000.0,0.00043,43]
[331345888,1720265433394,-151.02780423,0.00043733,2]
[331345890,1720265433404,-567.23482009,0.00043733,28]
[331345892,1720265433415,-151.02780421,0.00043734,2]
[331345894,1720265433425,-151.02780421,0.00043734,2]
[331345896,1720265433434,-151.02780421,0.00043735,2]
[331345898,1720265433444,-13705.6186483,0.000438,14]
[331345900,1720265433454,-230.92,0.00043805,3]
[331345902,1720265433464,-349.76,0.00043805,3]
[331345904,1720265433474,-291913.345803,0.00043815,5]
[331345906,1720265433483,-28983.29894914,0.00043833,31]
[331345908,1720265433493,-474.10874212,0.00043834,31]
[331345910,1720265433503,-500.0,0.00043834,31]
[331345912,1720265433512,-434.53706957,0.00043834,31]
[331345914,1720265433521,-500.0,0.00043834,31]
[331345916,1720265433532,-500.0,0.00043834,31]
[331345918,1720265433542,-464.79299385,0.00043834,31]
[331345920,1720265433551,-300.03609196,0.00043835,120]
[331345922,1720265433561,-10000.0,0.00043835,60]
[331345924,1720265433570,-500.0,0.00043835,120]
[331345926,1720265433581,-3236.02722302,0.00043835,20]
[331345928,1720265433593,-500.0,0.00043835,2]
[331345930,1720265433603,-500.0,0.00043835,120]
[331345932,1720265433612,-503.30435179,0.00043835,120]
[331345934,1720265433621,-524.45958046,0.00043835,120]
[331345936,1720265433631,-500.0,0.00043835,120]
[331345938,1720265433641,-503.2954728,0.00043835,120]
[331345940,1720265433650,-500.0,0.00043835,120]
[331345942,1720265433659,-500.0,0.00043835,120]
[331345944,1720265433670,-500.0,0.00043835,120]
[331345946,1720265433680,-500.0,0.00043835,120]
[331345948,1720265433690,-500.42450596,0.00043835,120]
[331345950,1720265433699,-666.34,0.00043835,120]
[331345952,1720265433709,-503.59107688,0.00043835,120]
[331345954,1720265433718,-504.25241251,0.00043835,120]
[331345956,1720265433728,-500.0,0.00043835,120]
[331345958,1720265433737,-500.0,0.00043835,120]
[331345960,1720265433746,-502.08107638,0.00043835,120]
[331345961,1720265433756,-798.61,0.00043835,120]
[331345963,1720265433765,-500.0,0.00043835,120]
[331345965,1720265433775,-488.24691159,0.00043835,120]
[331345967,1720265433784,-316.15429094,0.00043835,120]
[331345969,1720265433794,-503.65043947,0.00043835,120]
[331345971,1720265433803,-336.51504459,0.00043835,120]
[331345972,1720265433813,-500.0,0.00043835,120]
[331345974,1720265433823,-500.0,0.00043835,120]
[331345975,1720265433833,-500.0,0.00043835,120]
[331345976,1720265433842,-784.02,0.00043835,120]
[331345977,1720265433854,-500.0,0.00043835,2]
[331345978,1720265433863,-500.0,0.00043835,120]
[331345979,1720265433873,-552.27818424,0.00043835,120]
[331345980,1720265433883,-501.19122402,0.00043835,2]
[331345981,1720265433892,-827.0,0.00043835,120]
[331345982,1720265433902,-502.05241457,0.00043835,120]
[331345983,1720265433911,-500.0,0.00043835,120]
[331345984,1720265433920,-506.99784238,0.00043835,120]
[331345985,1720265433929,-177.88582175,0.00043835,20]
[331345986,1720265433938,-522.37582318,0.00043835,120]
[331345987,1720265433948,-504.04486906,0.00043835,120]
[331345988,1720265433958,-443.85817389,0.00043835,120]
[331345989,1720265433968,-500.0,0.00043835,120]
[331345990,1720265433977,-500.0,0.00043835,120]
[331345991,1720265433986,-500.0,0.00043835,120]
[331345992,1720265433997,-502.71755182,0.00043835,120]
[331345993,1720265434011,-5.44180635,0.00043835,120]
[331345994,1720265434020,-286.19820702,0.00043835,120]
[331346028,1720265445457,-999.9933705,0.00043735,2]
[331346031,1720265445471,-4752.51613127,0.00043735,2]
[331346035,1720265445481,-500.0,0.00043814,31]
[331346039,1720265445490,-500.0,0.00043814,7]
[331346042,1720265445500,-500.0,0.00043814,31]
[331346046,1720265445509,-500.0,0.00043814,7]
[331346049,1720265445519,-410.89911638,0.00043814,31]
[331346053,1720265445529,-500.0,0.00043814,7]
[331346055,1720265445539,-500.0,0.00043814,7]
[331346058,1720265445549,-500.0,0.00043814,7]
[331346061,1720265445559,-500.0,0.00043814,7]
[331346063,1720265445570,-554.66056565,0.00043814,7]
[331346066,1720265445581,-500.0,0.00043814,7]
[331346068,1720265445592,-500.0,0.00043814,7]
[331346069,1720265445605,-500.0,0.00043814,7]
[331346071,1720265445615,-500.0,0.00043814,7]
[331346073,1720265445626,-213.80179298,0.00043835,120]
[331346076,1720265445636,-500.0,0.00043835,120]
[331346077,1720265445646,-560.04294068,0.00043835,120]
[331346078,1720265445656,-500.0,0.00043835,120]
[331346079,1720265445666,-500.0,0.00043835,120]
[331346080,1720265445676,-618.77,0.00043835,120]
[331346081,1720265445686,-500.0,0.00043835,120]
[331346082,1720265445695,-500.0,0.00043835,120]
[331346083,1720265445705,-500.0,0.00043835,120]
[331346084,1720265445716,-500.0,0.00043835,120]
[331346085,1720265445726,-500.0,0.00043835,120]
[331346086,1720265445735,-504.722329,0.00043835,120]
[331346087,1720265445745,-500.0,0.00043835,120]
[331346088,1720265445754,-525.86,0.00043835,120]
[331346089,1720265445765,-504.85003077,0.00043835,120]
[331346090,1720265445775,-500.0,0.00043835,120]
[331346091,1720265445784,-505.09265422,0.00043835,120]
[331346092,1720265445794,-500.0,0.00043835,120]
[331346093,1720265445804,-507.17497498,0.00043835,120]
[331346094,1720265445815,-500.0,0.00043835,120]
[331346095,1720265445824,-500.0,0.00043835,120]
[331346096,1720265445834,-2294.01850451,0.00043835,120]
[331346097,1720265445848,-1075.20149549,0.00043835,120]
[331346098,1720265445858,-204.30648205,0.00043835,120]
[331346099,1720265445868,-504.78357785,0.00043835,120]
[331346100,1720265445877,-397.50983395,0.00043835,120]
[331346101,1720265445889,-261.91016605,0.00043835,120]
[331346102,1720265445898,-151.0,0.00043835,14]
[331346103,1720265445907,-46.17783395,0.00043835,120]
[331346104,1720265446055,-453.82216605,0.00043835,120]
[331346105,1720265446066,-504.02963267,0.00043835,120]
[331346106,1720265446075,-500.0,0.00043835,120]
[331346107,1720265446085,-500.0,0.00043835,120]
[331346108,1720265446094,-501.2062978,0.00043835,120]
[331346109,1720265446103,-502.37178256,0.00043835,120]
[331346110,1720265446113,-500.0,0.00043835,120]
[331346111,1720265446123,-500.0,0.00043835,120]
[331346112,1720265446132,-500.0,0.00043835,120]
[331346113,1720265446142,-500.0,0.00043835,120]
[331346114,1720265446152,-500.0,0.00043835,120]
[331346115,1720265446162,-500.0,0.00043835,120]
[331346116,1720265446172,-502.29654849,0.00043835,120]
[331346117,1720265446182,-500.0,0.00043835,120]
[331346118,1720265446192,-500.0,0.00043835,120]
[331346119,1720265446202,-583.44,0.00043835,120]
[331346120,1720265446212,-500.0,0.00043835,120]
[331346121,1720265446222,-500.0,0.00043835,120]
[331346122,1720265446232,-200.0,0.00043835,7]
[331346123,1720265446242,-504.4667416,0.00043835,120]
[331346124,1720265446252,-641.52421201,0.00043835,120]
[331346125,1720265446262,-588.68,0.00043835,120]
[331346126,1720265446272,-588.68,0.00043835,120]
[331346127,1720265446282,-588.68,0.00043835,120]
[331346128,1720265446292,-588.68,0.00043835,120]
[331346129,1720265446301,-588.68,0.00043835,120]
[331346130,1720265446311,-588.68,0.00043835,120]
[331346131,1720265446321,-588.68,0.00043835,120]
[331346132,1720265446331,-588.68,0.00043835,120]
[331346133,1720265446341,-588.68,0.00043835,120]
[331346134,1720265446351,-588.68,0.00043835,120]
[331346135,1720265446362,-454.41,0.00043835,120]
[331346136,1720265446372,-550.0740932,0.00043835,120]
[331346137,1720265446382,-500.0,0.00043835,120]
[331346138,1720265446393,-500.0,0.00043835,120]
[331346139,1720265446403,-502.91924705,0.00043835,120]
[331346140,1720265446413,-500.0,0.00043835,120]
[331346141,1720265446423,-500.0,0.00043835,120]
[331346142,1720265446434,-502.14709051,0.00043835,120]
[331346143,1720265446444,-503.66318536,0.00043835,120]
[331346144,1720265446453,-500.0,0.00043835,120]
[331346145,1720265446464,-500.0,0.00043835,120]
[331346146,1720265446474,-500.0,0.00043835,120]
[331346147,1720265446484,-479.00722387,0.00043835,120]
[331346148,1720265446494,-500.0,0.00043835,120]
[331346149,1720265446503,-650.75,0.00043835,120]
[331346150,1720265446513,-500.0,0.00043835,120]
[331346151,1720265446523,-948.76,0.00043835,120]
[331346152,1720265446533,-151.0,0.00043835,14]
[331346153,1720265446542,-500.0,0.00043835,120]
[331346154,1720265446552,-500.0,0.00043835,120]
[331346155,1720265446562,-500.0,0.00043835,120]
[331346156,1720265446572,-500.0,0.00043835,120]
[331346157,1720265446584,-1018.08,0.00043835,120]
[331346158,1720265446594,-500.0,0.00043835,120]
[331346159,1720265446604,-500.0,0.00043835,120]
[331346160,1720265446614,-501.66657909,0.00043835,120]
[331346161,1720265446624,-151.0,0.00043835,14]
[331346162,1720265446635,-500.0,0.00043835,120]
[331346164,1720265446645,-500.0,0.00043835,120]
[331346165,1720265446656,-1282.11,0.00043835,120]
[331346166,1720265446666,-500.0,0.00043835,120]
[331346167,1720265446677,-500.0,0.00043835,120]
[331346168,1720265446687,-1022.76,0.00043835,120]
[331346169,1720265446697,-500.0,0.00043835,120]
[331346170,1720265446706,-502.51654895,0.00043835,120]
[331346171,1720265446716,-151.0,0.00043835,14]
[331346172,1720265446726,-500.0,0.00043835,120]
[331346173,1720265446736,-500.0,0.00043835,120]
[331346174,1720265446746,-222.047453,0.00043835,14]
[331346175,1720265446756,-525.74,0.00043835,120]
[331346176,1720265446766,-500.0,0.00043835,120]
[331346177,1720265446776,-1213.87,0.00043835,120]
[331346178,1720265446786,-500.0,0.00043835,120]
[331346179,1720265446796,-504.76590442,0.00043835,120]
[331346180,1720265446806,-500.0,0.00043835,120]
[331346181,1720265446815,-500.0,0.00043835,120]
[331346182,1720265446825,-203.62997741,0.00043835,120]
[331346183,1720265446835,-500.0,0.00043835,120]
[331346184,1720265446845,-431.54649,0.00043835,2]
[331346185,1720265446855,-668.7,0.00043835,120]
[331346186,1720265446864,-500.0,0.00043835,120]
[331346187,1720265446874,-431.54649,0.00043835,2]
[331346188,1720265446884,-558.62,0.00043835,120]
[331346189,1720265446894,-500.0,0.00043835,120]
[331346190,1720265446903,-151.0,0.00043835,14]
[331346191,1720265446913,-500.0,0.00043835,120]
[331346192,1720265446922,-500.0,0.00043835,120]
[331346193,1720265446932,-500.0,0.00043835,120]
[331346194,1720265446942,-151.0,0.00043835,14]
[331346195,1720265446952,-888.97,0.00043835,120]
[331346196,1720265446961,-500.0,0.00043835,120]
[331346197,1720265446972,-500.0,0.00043835,120]
[331346198,1720265446982,-500.0,0.00043835,120]
[331346199,1720265446991,-726.45,0.00043835,120]
[331346200,1720265447001,-540.46,0.00043835,120]
[331346201,1720265447011,-502.26,0.00043835,120]
[331346202,1720265447021,-151.0,0.00043835,14]
[331346203,1720265447031,-500.0,0.00043835,120]
[331346204,1720265447041,-561.12,0.00043835,120]
[331346205,1720265447052,-151.0,0.00043835,14]
[331346206,1720265447062,-2423.82,0.00043835,60]
[331346207,1720265447072,-151.0,0.00043835,14]
[331346208,1720265447081,-1297.33,0.00043835,120]
[331346209,1720265447091,-503.1657776,0.00043835,120]
[331346211,1720265447100,-500.0,0.00043835,120]
[331346213,1720265447110,-500.0,0.00043835,120]
[331346215,1720265447119,-676.88,0.00043835,120]
[331346216,1720265447128,-8316.77,0.00043835,120]
[331346218,1720265447140,-8316.77,0.00043835,120]
[331346220,1720265447150,-8316.77,0.00043835,120]
[331346222,1720265447159,-4762.22865851,0.00043835,120]
[331346223,1720265447179,-1604.89677177,0.00043835,120]
[331346224,1720265447249,-1280.06456494,0.00043835,120]
[331346225,1720265448102,-669.58000478,0.00043835,120]
[331346226,1720265448112,-161.12125757,0.00043835,120]
[331346230,1720265469606,3527.00997745,0.00035834,2]
[331346231,1720265469770,18350.84883734,0.00035834,2]
[331346249,1720266332372,-300.58378038,0.0003,7]
[331346250,1720266332394,-184.81415504,0.0003065,2]
[331346251,1720266332415,-499.95778,0.00033,30]
[331346252,1720266332437,-94.33790725,0.00034865,2]
[331346258,1720266382125,15.85310535,0.00014,14]
[331346259,1720266382152,215.85310535,0.00014,14]
[331346260,1720266382185,12.4927983,0.00014,14]
[331346263,1720266422132,244.199009,0.00014,14]
[331346264,1720266426308,-78.77100875,0.00034865,2]
[331346265,1720266426334,-303.07590911,0.00034865,4]
[331346266,1720266426360,-166.666666,0.00034958,2]
[331346267,1720266426383,-399.49347771,0.00035,2]
[331346268,1720266426407,-232.938605,0.00035257,2]
[331346269,1720266426535,-2336.1464749,0.00035402,2]
[331346270,1720266426559,-190.9281156,0.00035616,2]
[331346271,1720266426585,-188.00077952,0.00035834,4]
[331346272,1720266426611,-763.20815407,0.00035834,4]
[331346273,1720266426635,-273.78859858,0.00035834,4]
[331346274,1720266426661,-166.666666,0.00035911,2]
[331346275,1720266426685,-6910.00783252,0.00036,30]
[331346276,1720266434108,-604.95682507,0.00036,30]
[331346278,1720266468561,376.09694548,0.00016969,2]
[331346279,1720266486604,566.23632333,0.00016969,2]
[331346282,1720266547077,-435.03037269,0.00020568,2]
[331346284,1720266549268,-500.0,0.000285,7]
[331346285,1720266549289,-500.0,0.000285,7]
[331346286,1720266549310,-2012.19537711,0.00036,30]
[331346287,1720266549331,-1754.24260498,0.00036351,14]
[331346288,1720266549352,-166.666666,0.00036864,2]
[331346289,1720266549374,-1109.73471439,0.00037259,4]
[331346290,1720266549395,-1061.3999352,0.00037523,4]
[331346291,1720266549416,-166.666666,0.00037817,2]
[331346292,1720266549438,-264.77276374,0.00037899,4]
[331346293,1720266550099,-500.0,0.000285,7]
[331346294,1720266550120,-500.0,0.000285,7]
[331346295,1720266550330,500.0,0.000285,7]
[331346296,1720266550724,500.0,0.000285,7]
[331346297,1720266551338,-698.19300899,0.00037899,4]
[331346298,1720266551359,-495.50543718,0.00037899,4]
[331346299,1720266551380,-670.52354543,0.00037899,4]
[331346300,1720266551401,-302.65403772,0.00038499,2]
[331346301,1720266551421,-706.63540107,0.00038499,4]
[331346302,1720266551441,-706.63540107,0.00038499,4]
[331346303,1720266551463,-166.666666,0.0003877,2]